fUSD/lending_fUSD_20241210
["ID","MTS","AMOUNT","RATE_DAILY","PERIOD"]
[344890106,1733853077762,-4204.56,0.00010958,2]
[344890107,1733853077771,-1283.46,0.00010958,2]
[344890108,1733853077780,-4536.07,0.00010958,2]
[344890109,1733853077789,-1283.46,0.00010958,2]
[344890110,1733853077799,-4536.07,0.00010958,2]
[344890111,1733853077808,-500.0,0.00010958,2]
[344890112,1733853077817,-934.32140288,0.00010958,2]
[344890113,1733853077830,-6723.54859712,0.00010958,2]
[344890114,1733853077839,-2579.15120288,0.00010958,2]
[344890115,1733853077850,-1625.40879712,0.00010958,2]
[344890116,1733853077863,-4536.07,0.00010958,2]
[344890117,1733853077873,-500.0,0.00010958,2]
[344890118,1733853077882,-1283.46,0.00010958,2]
[344890119,1733853077891,-1000.47974838,0.00010958,2]
[344890120,1733853077903,-985.76842036,0.00010958,2]
[344890121,1733853077914,-624.65999999,0.00010958,2]
[344890122,1733853077927,-5046.96183127,0.00010958,2]
[344890123,1733853077936,-4204.56,0.00010958,2]
[344890124,1733853077945,-1283.46,0.00010958,2]
[344890125,1733853077954,-500.0,0.00010958,2]
[344890126,1733853077963,-4391.34999636,0.00010958,2]
[344890127,1733853077975,-144.72000364,0.00010958,2]
[344890128,1733853077984,-917.91473265,0.00010958,2]
[344890129,1733853078013,-986.63802,0.00010958,2]
[344890130,1733853078024,-1786.75,0.00010958,2]
[344890131,1733853078095,-381.2422531,0.00010958,2]
[344890132,1733853078106,-132.01499425,0.00010958,2]
[344890133,1733853078119,-1283.46,0.00010958,2]
[344890134,1733853078130,-500.0,0.00010958,2]
[344890135,1733853078140,-2015.37886736,0.00010958,2]
[344890136,1733853078152,-854.05179623,0.00010958,2]
[344890137,1733853078167,-1006.0500033,0.00010958,2]
[344890138,1733853078272,-124.42103268,0.00010958,2]
[344890139,1733853078285,-3657.96830043,0.00010958,2]
[344890140,1733853078294,-1283.46,0.00010958,2]
[344890141,1733853078304,-500.0,0.00010958,2]
[344890142,1733853078313,-2466.58841103,0.00010958,2]
[344890143,1733853078325,-1737.97158897,0.00010958,2]
[344890144,1733853078334,-4011.57207496,0.00010958,2]
[344890145,1733853078346,-3646.29792504,0.00010958,2]
[344890146,1733853078355,-1283.46,0.00010958,2]
[344890147,1733853078373,-500.0,0.00010958,2]
[344890148,1733853078382,-3478.27257498,0.00010958,2]
[344890149,1733853078639,-379.91325339,0.00010958,2]
[344890150,1733853078652,-753.72890869,0.00010958,2]
[344890151,1733853078664,-188.35783792,0.00010958,2]
[344890152,1733853078673,-571.31194247,0.00010958,2]
[344890153,1733853078688,-3608.28548255,0.00010958,2]
[344890154,1733853078697,-3870.50972245,0.00010958,2]
[344890155,1733853078711,-334.05027755,0.00010958,2]
[344890156,1733853078725,-500.0,0.00010958,2]
[344890157,1733853078735,-1283.46,0.00010958,2]
[344890158,1733853078745,-4204.56,0.00010958,2]
[344890159,1733853078754,-7657.87,0.00010958,2]
[344890160,1733853078763,-500.0,0.00010958,2]
[344890161,1733853078773,-1283.46,0.00010958,2]
[344890162,1733853078782,-4204.56,0.00010958,2]
[344890163,1733853078792,-7657.87,0.00010958,2]
[344890164,1733853078801,-500.0,0.00010958,2]
[344890165,1733853078810,-1283.46,0.00010958,2]
[344890166,1733853078820,-4204.56,0.00010958,2]
[344890167,1733853078829,-7657.87,0.00010958,2]
[344890168,1733853078839,-500.0,0.00010958,2]
[344890169,1733853078848,-1283.46,0.00010958,2]
[344890170,1733853078860,-2525.22385845,0.00010958,2]
[344890171,1733853079044,-329.76630008,0.00010958,2]
[344890172,1733853079060,-4802.87984147,0.00010958,2]
[344890173,1733853079069,-504.50977543,0.00010958,2]
[344890174,1733853079079,-1283.46,0.00010958,2]
[344890175,1733853079089,-4536.07,0.00010958,2]
[344890176,1733853079098,-3054.5803831,0.00010958,2]
[344890177,1733853079114,-4603.2896169,0.00010958,2]
[344890178,1733853079124,-3861.91200788,0.00010958,2]
[344890179,1733853079135,-342.64799212,0.00010958,2]
[344890180,1733853079145,-165.46950563,0.00010958,2]
[344890181,1733853079157,-1117.99049437,0.00010958,2]
[344890182,1733853079167,-4536.07,0.00010958,2]
[344890183,1733853079176,-7657.87,0.00010958,2]
[344890184,1733853079186,-4204.56,0.00010958,2]
[344890185,1733853079195,-4536.07,0.00010958,2]
[344890186,1733853079205,-1283.46,0.00010958,2]
[344890187,1733853079215,-516.12418039,0.00010958,2]
[344890188,1733853079243,-335.79,0.00010958,2]
[344890189,1733853151512,1000.0,0.0002,120]
[344890190,1733853160682,1000.0,0.0002,120]
[344890191,1733853163636,1000.0,0.0002,120]
[344890193,1733853255843,150.0,0.0002,120]
[344890194,1733853305001,157.0,0.00010958,30]
[344890195,1733853305847,157.0,0.00013166,30]
[344890198,1733853604968,157.0,0.00010958,30]
[344890201,1733853745407,926.28,8.219e-05,2]
[344890205,1733853905286,158.0,0.00010958,30]
[344890223,1733854157110,2500.0,0.00010958,120]
[344890224,1733854157555,2500.0,0.00010958,120]
[344890225,1733854157891,2500.0,0.00010958,120]
[344890226,1733854158205,1554.3652974,0.00010958,120]
[344890227,1733854173741,3500.0,9.501e-05,2]
[344890228,1733854203014,156.0,0.00010958,30]
[344890229,1733854204703,156.0,0.00010958,30]
[344890230,1733854205070,156.0,0.00012798,30]
[344890250,1733854232254,-250.0,9.562e-05,2]
[344890252,1733854232264,-485.52156283,9.573e-05,2]
[344890254,1733854232275,-249.20843717,9.573e-05,2]
[344890256,1733854232284,-250.0,9.599e-05,2]
[344890258,1733854232294,-300.0,9.612e-05,2]
[344890260,1733854232303,-17.61156294,9.698e-05,2]
[344890262,1733854232315,-182.38843706,9.698e-05,2]
[344890263,1733854232324,-520.76226975,9.75e-05,2]
[344890264,1733854232335,-1606.94248596,9.75e-05,2]
[344890266,1733854232347,-402.3644199,9.75e-05,2]
[344890268,1733854232358,-931.00001,9.75e-05,2]
[344890270,1733854232369,-602.99999997,9.75e-05,2]
[344890271,1733854232402,-1789.66810722,9.75e-05,2]
[344890272,1733854232414,-16910.70798168,9.75e-05,2]
[344890273,1733854232522,-1135.55472552,9.75e-05,2]
[344890274,1733854232532,-1000.0,9.798e-05,2]
[344890275,1733854232542,-1038.81686426,9.798e-05,2]
[344890276,1733854232551,-974.91,9.8e-05,2]
[344890277,1733854232561,-619.62278258,9.853e-05,2]
[344890278,1733854232572,-593.999997,9.853e-05,2]
[344890279,1733854232772,-34.66263688,9.853e-05,2]
[344890280,1733854232787,-251.71458354,9.853e-05,2]
[344890281,1733854232796,-198.6,9.863e-05,2]
[344890282,1733854232805,-200.0,9.906e-05,2]
[344890283,1733854232815,-261.78,9.929e-05,2]
[344890284,1733854232824,-987.90541646,9.984e-05,2]
[344890285,1733854232835,-50.9114478,9.984e-05,2]
[344890286,1733854232844,-150.0,9.999e-05,2]
[344890287,1733854232853,-402.56856736,0.0001,2]
[344890288,1733854232865,-1448.4844662,0.0001,2]
[344890291,1733854232906,-1956.95495,0.0001,2]
[344890293,1733854232918,-314.15649431,0.0001,2]
[344890295,1733854232934,-2097.0000045,0.0001,2]
[344890322,1733854238312,-322.35119471,9.573e-05,2]
[344890323,1733854238321,-621.68821529,0.0001,2]
[344890324,1733854238334,-1665.14015305,0.0001,2]
[344890325,1733854238345,-946.11,0.0001,2]
[344890326,1733854238363,-6772.88149526,0.0001,2]
[344890327,1733854238373,-869.33025283,0.0001,2]
[344890328,1733854238384,-132.50974717,0.0001,2]
[344890329,1733854238393,-980.48,0.0001,2]
[344890330,1733854238402,-991.08,0.0001,2]
[344890331,1733854238411,-1016.98,0.0001,2]
[344890332,1733854238421,-984.74,0.0001,2]
[344890333,1733854238430,-974.91,0.00010178,2]
[344890334,1733854238439,-166.95,0.00010256,2]
[344890335,1733854238453,-1038.81686426,0.00010269,2]
[344890336,1733854238462,-1948.8,0.00010356,2]
[344890337,1733854238472,-1010.78,0.00010369,2]
[344890338,1733854238480,-727.63,0.000104,2]
[344890339,1733854238490,-502.043,0.0001041,2]
[344890340,1733854238499,-992.58,0.00010447,2]
[344890341,1733854238508,-776.53196999,0.00010453,2]
[344890342,1733854238520,-149.74803001,0.00010453,2]
[344890343,1733854238529,-1092.089428,0.00010475,2]
[344890344,1733854238540,-14236.040572,0.00010475,2]
[344890345,1733854238550,-999.99,0.00010475,2]
[344890346,1733854238559,-423.48,0.00010475,2]
[344890347,1733854238568,-150.99,0.00010475,2]
[344890348,1733854238578,-37.22808306,0.00010475,2]
[344890349,1733854238589,-1336.62191694,0.00010475,2]
[344890350,1733854238598,-2345.46936906,0.00010475,2]
[344890351,1733854238610,-748.51063094,0.00010475,2]
[344890352,1733854238619,-150.0,0.00010478,2]
[344890353,1733854238628,-1009.55,0.00010503,2]
[344890354,1733854238638,-36.63936906,0.00010518,2]
[344890355,1733854238661,-163.36063094,0.00010518,2]
[344890356,1733854238670,-1001.62,0.00010599,2]
[344890357,1733854238679,-1191.0,0.000107,2]
[344890359,1733854238688,-1003.77,0.00010758,2]
[344890361,1733854238702,-1007.98,0.00010758,2]
[344890363,1733854238711,-2557.7306185,0.00010758,2]
[344890365,1733854238720,-734.73,0.0001077,2]
[344890367,1733854238729,-1946.0,0.000108,2]
[344890369,1733854238739,-1140.0,0.00010849,2]
[344890371,1733854238748,-3000.0,0.0001085,2]
[344890373,1733854238758,-31915.4329,0.00010856,2]
[344890375,1733854238767,-2488.379,0.00010857,2]
[344890377,1733854238777,-169.245,0.00010857,2]
[344890379,1733854238787,-6874.3294,0.00010858,2]
[344890381,1733854238796,-5000.0,0.00010858,2]
[344890383,1733854238805,-2646.529329,0.0001088,2]
[344890385,1733854238814,-156.70578603,0.000109,2]
[344890387,1733854238823,-156.70578601,0.000109,2]
[344890389,1733854238833,-156.70578601,0.000109,2]
[344890392,1733854238843,-156.70578601,0.000109,2]
[344890394,1733854238853,-156.70578601,0.000109,2]
[344890396,1733854238863,-156.70578601,0.000109,2]
[344890398,1733854238872,-156.70578601,0.000109,2]
[344890401,1733854238883,-156.70578601,0.000109,2]
[344890403,1733854238892,-156.70578601,0.000109,2]
[344890405,1733854238901,-156.70578601,0.000109,2]
[344890407,1733854238910,-156.70578601,0.000109,2]
[344890409,1733854238923,-156.70578601,0.000109,2]
[344890411,1733854238932,-156.70578601,0.000109,2]
[344890413,1733854238942,-156.70578601,0.000109,2]
[344890415,1733854238954,-156.70578601,0.000109,2]
[344890417,1733854238965,-156.70578601,0.000109,2]
[344890419,1733854238975,-156.70578601,0.000109,2]
[344890421,1733854238984,-156.70578601,0.000109,2]
[344890423,1733854238995,-156.70578601,0.000109,2]
[344890425,1733854239005,-473.0,0.00010932,2]
[344890427,1733854239015,-18670.64834506,0.00010948,2]
[344890429,1733854239027,-1427.36425832,0.00010948,2]
[344890434,1733854239060,-1376468.28156493,0.00010948,2]
[344890436,1733854239069,-42024.51590544,0.00010956,2]
[344890438,1733854239079,-1028.28055695,0.00010957,3]
[344890440,1733854239089,-500.0,0.00010957,2]
[344890442,1733854239099,-7966.1173,0.00010958,2]
[344890444,1733854239108,-1590.0,0.00010958,2]
[344890446,1733854239117,-500.0,0.00010958,2]
[344890448,1733854239127,-500.0,0.00010958,2]
[344890450,1733854239135,-500.0,0.00010958,2]
[344890451,1733854239144,-500.0,0.00010958,2]
[344890453,1733854239153,-500.0,0.00010958,2]
[344890454,1733854239162,-500.0,0.00010958,2]
[344890456,1733854239171,-400.92,0.00010958,2]
[344890458,1733854239181,-500.0,0.00010958,2]
[344890460,1733854239190,-500.0,0.00010958,2]
[344890462,1733854239204,-500.0,0.00010958,2]
[344890464,1733854239213,-500.0,0.00010958,2]
[344890466,1733854239224,-621.78,0.00010958,2]
[344890468,1733854239232,-500.0,0.00010958,2]
[344890470,1733854239242,-500.0,0.00010958,2]
[344890472,1733854239251,-576.97,0.00010958,2]
[344890474,1733854239260,-500.0,0.00010958,2]
[344890476,1733854239269,-500.0,0.00010958,2]
[344890478,1733854239278,-4082.44,0.00010958,2]
[344890480,1733854239287,-4082.44,0.00010958,2]
[344890482,1733854239297,-500.0,0.00010958,2]
[344890484,1733854239306,-4082.44,0.00010958,2]
[344890486,1733854239315,-408.92,0.00010958,2]
[344890488,1733854239325,-4082.44,0.00010958,2]
[344890490,1733854239334,-4082.44,0.00010958,2]
[344890492,1733854239343,-4082.44,0.00010958,2]
[344890494,1733854239352,-4082.44,0.00010958,2]
[344890496,1733854239361,-4082.44,0.00010958,2]
[344890497,1733854239371,-4082.44,0.00010958,2]
[344890499,1733854239381,-4082.44,0.00010958,2]
[344890501,1733854239390,-4082.44,0.00010958,2]
[344890503,1733854239399,-4082.44,0.00010958,2]
[344890505,1733854239409,-4082.44,0.00010958,2]
[344890507,1733854239419,-4082.44,0.00010958,2]
[344890509,1733854239428,-4082.44,0.00010958,2]
[344890511,1733854239437,-4082.44,0.00010958,2]
[344890513,1733854239450,-4082.44,0.00010958,2]
[344890515,1733854239460,-4082.44,0.00010958,2]
[344890517,1733854239470,-4082.44,0.00010958,2]
[344890519,1733854239479,-4082.44,0.00010958,2]
[344890521,1733854239488,-4082.44,0.00010958,2]
[344890523,1733854239498,-4082.44,0.00010958,2]
[344890525,1733854239507,-4082.44,0.00010958,2]
[344890527,1733854239517,-4082.65591514,0.00010958,2]
[344890528,1733854239527,-500.0,0.00010958,2]
[344890530,1733854239536,-500.0,0.00010958,2]
[344890532,1733854239546,-258.95,0.00010958,2]
[344890534,1733854239555,-500.0,0.00010958,2]
[344890536,1733854239565,-500.0,0.00010958,2]
[344890538,1733854239575,-500.0,0.00010958,2]
[344890541,1733854239585,-500.0,0.00010958,2]
[344890543,1733854239594,-500.0,0.00010958,2]
[344890544,1733854239603,-500.0,0.00010958,2]
[344890546,1733854239612,-180.45,0.00010958,2]
[344890549,1733854239622,-500.0,0.00010958,2]
[344890550,1733854239631,-500.0,0.00010958,2]
[344890552,1733854239641,-500.0,0.00010958,2]
[344890554,1733854239651,-500.0,0.00010958,2]
[344890556,1733854239660,-500.0,0.00010958,2]
[344890558,1733854239670,-500.0,0.00010958,2]
[344890560,1733854239679,-500.0,0.00010958,2]
[344890562,1733854239689,-500.0,0.00010958,2]
[344890564,1733854239700,-432.32,0.00010958,2]
[344890566,1733854239709,-248.98183121,0.00010958,2]
[344890568,1733854239718,-500.0,0.00010958,2]
[344890570,1733854239727,-500.0,0.00010958,2]
[344890572,1733854239737,-327.84,0.00010958,2]
[344890574,1733854239747,-500.0,0.00010958,2]
[344890576,1733854239756,-500.0,0.00010958,2]
[344890578,1733854239766,-500.0,0.00010958,2]
[344890580,1733854239776,-500.0,0.00010958,2]
[344890582,1733854239785,-352.37,0.00010958,2]
[344890584,1733854239797,-500.0,0.00010958,2]
[344890586,1733854239807,-500.0,0.00010958,2]
[344890607,1733854240012,-500.0,0.00010958,2]
[344890609,1733854240024,-305.69,0.00010958,2]
[344890611,1733854240034,-416.5,0.00010958,2]
[344890613,1733854240044,-500.0,0.00010958,2]
[344890615,1733854240054,-500.0,0.00010958,2]
[344890617,1733854240063,-500.0,0.00010958,2]
[344890619,1733854240072,-500.0,0.00010958,2]
[344890621,1733854240082,-500.0,0.00010958,2]
[344890623,1733854240092,-500.0,0.00010958,2]
[344890625,1733854240101,-500.0,0.00010958,2]
[344890627,1733854240111,-500.0,0.00010958,2]
[344890629,1733854240121,-500.0,0.00010958,2]
[344890632,1733854240131,-500.0,0.00010958,2]
[344890634,1733854240141,-500.0,0.00010958,2]
[344890636,1733854240151,-500.0,0.00010958,2]
[344890639,1733854240160,-500.0,0.00010958,2]
[344890642,1733854240170,-500.0,0.00010958,2]
[344890644,1733854240179,-500.0,0.00010958,2]
[344890646,1733854240189,-500.0,0.00010958,2]
[344890648,1733854240206,-500.0,0.00010958,2]
[344890651,1733854240216,-188.95038039,0.00010958,2]
[344890654,1733854240225,-500.0,0.00010958,2]
[344890658,1733854240235,-500.0,0.00010958,2]
[344890661,1733854240245,-500.0,0.00010958,2]
[344890664,1733854240254,-647.75591342,0.00010958,2]
[344890667,1733854240263,-500.0,0.00010958,2]
[344890670,1733854240273,-500.0,0.00010958,2]
[344890673,1733854240283,-500.0,0.00010958,2]
[344890674,1733854240292,-500.0,0.00010958,2]
[344890676,1733854240301,-207.41,0.00010958,2]
[344890678,1733854240311,-500.0,0.00010958,2]
[344890680,1733854240321,-500.0,0.00010958,2]
[344890682,1733854240330,-185.59,0.00010958,2]
[344890684,1733854240340,-500.0,0.00010958,2]
[344890686,1733854240349,-500.0,0.00010958,2]
[344890688,1733854240358,-500.0,0.00010958,2]
[344890690,1733854240368,-500.0,0.00010958,2]
[344890692,1733854240377,-548.64,0.00010958,2]
[344890694,1733854240387,-500.0,0.00010958,2]
[344890696,1733854240396,-500.0,0.00010958,2]
[344890698,1733854240406,-500.0,0.00010958,2]
[344890700,1733854240415,-500.0,0.00010958,2]
[344890702,1733854240425,-500.0,0.00010958,2]
[344890704,1733854240434,-500.0,0.00010958,2]
[344890706,1733854240443,-521.77,0.00010958,2]
[344890708,1733854240458,-500.0,0.00010958,2]
[344890710,1733854240468,-500.0,0.00010958,2]
[344890712,1733854240478,-530.34,0.00010958,2]
[344890714,1733854240487,-500.0,0.00010958,2]
[344890716,1733854240496,-500.0,0.00010958,2]
[344890718,1733854240505,-500.0,0.00010958,2]
[344890720,1733854240515,-500.0,0.00010958,2]
[344890722,1733854240524,-500.0,0.00010958,2]
[344890724,1733854240534,-500.0,0.00010958,2]
[344890726,1733854240544,-565.92,0.00010958,2]
[344890728,1733854240553,-500.0,0.00010958,2]
[344890730,1733854240563,-500.0,0.00010958,2]
[344890732,1733854240572,-500.0,0.00010958,2]
[344890734,1733854240582,-428.26436626,0.00010958,2]
[344890735,1733854240591,-184.48,0.00010958,2]
[344890736,1733854240600,-500.0,0.00010958,2]
[344890737,1733854240609,-500.0,0.00010958,2]
[344890738,1733854240619,-274.65,0.00010958,2]
[344890739,1733854240628,-500.0,0.00010958,2]
[344890740,1733854240638,-500.0,0.00010958,2]
[344890741,1733854240647,-500.0,0.00010958,2]
[344890742,1733854240657,-500.0,0.00010958,2]
[344890743,1733854240666,-500.0,0.00010958,2]
[344890744,1733854240677,-500.0,0.00010958,2]
[344890745,1733854240686,-500.0,0.00010958,2]
[344890746,1733854240700,-500.0,0.00010958,2]
[344890748,1733854240709,-500.0,0.00010958,2]
[344890750,1733854240718,-498.69,0.00010958,2]
[344890751,1733854240727,-500.0,0.00010958,2]
[344890753,1733854240737,-500.0,0.00010958,2]
[344890755,1733854240746,-591.87,0.00010958,2]
[344890758,1733854240756,-500.0,0.00010958,2]
[344890760,1733854240765,-500.0,0.00010958,2]
[344890762,1733854240776,-500.0,0.00010958,2]
[344890764,1733854240785,-500.0,0.00010958,2]
[344890766,1733854240795,-500.0,0.00010958,2]
[344890768,1733854240804,-200.67,0.00010958,2]
[344890769,1733854240813,-500.0,0.00010958,2]
[344890772,1733854240823,-500.0,0.00010958,2]
[344890774,1733854240832,-500.0,0.00010958,2]
[344890776,1733854240842,-500.0,0.00010958,2]
[344890777,1733854240851,-500.0,0.00010958,2]
[344890779,1733854240860,-500.0,0.00010958,2]
[344890782,1733854240869,-500.0,0.00010958,2]
[344890784,1733854240879,-500.0,0.00010958,2]
[344890785,1733854240888,-500.0,0.00010958,2]
[344890787,1733854240897,-594.1,0.00010958,2]
[344890789,1733854240907,-500.0,0.00010958,2]
[344890791,1733854240916,-500.0,0.00010958,2]
[344890793,1733854240928,-500.0,0.00010958,2]
[344890795,1733854240937,-500.0,0.00010958,2]
[344890798,1733854240953,-500.0,0.00010958,2]
[344890800,1733854240964,-153.47,0.00010958,2]
[344890802,1733854240974,-500.0,0.00010958,2]
[344890804,1733854240984,-500.0,0.00010958,2]
[344890806,1733854240994,-500.0,0.00010958,2]
[344890807,1733854241005,-500.0,0.00010958,2]
[344890810,1733854241014,-500.0,0.00010958,2]
[344890811,1733854241024,-518.4,0.00010958,2]
[344890813,1733854241033,-500.0,0.00010958,2]
[344890816,1733854241043,-500.0,0.00010958,2]
[344890818,1733854241053,-500.0,0.00010958,2]
[344890820,1733854241063,-500.0,0.00010958,2]
[344890822,1733854241072,-500.0,0.00010958,2]
[344890824,1733854241082,-500.0,0.00010958,2]
[344890826,1733854241093,-500.0,0.00010958,2]
[344890828,1733854241102,-500.0,0.00010958,2]
[344890830,1733854241113,-500.0,0.00010958,2]
[344890832,1733854241122,-500.0,0.00010958,2]
[344890834,1733854241131,-500.0,0.00010958,2]
[344890836,1733854241140,-500.0,0.00010958,2]
[344890838,1733854241149,-500.0,0.00010958,2]
[344890840,1733854241159,-500.0,0.00010958,2]
[344890842,1733854241168,-150.17,0.00010958,2]
[344890844,1733854241178,-500.0,0.00010958,2]
[344890846,1733854241187,-227.3,0.00010958,2]
[344890848,1733854241200,-500.0,0.00010958,2]
[344890850,1733854241210,-500.0,0.00010958,2]
[344890852,1733854241219,-480.42,0.00010958,2]
[344890854,1733854241229,-500.0,0.00010958,2]
[344890855,1733854241239,-500.0,0.00010958,2]
[344890857,1733854241248,-500.0,0.00010958,2]
[344890859,1733854241257,-500.0,0.00010958,2]
[344890860,1733854241267,-422.35,0.00010958,2]
[344890862,1733854241276,-500.0,0.00010958,2]
[344890864,1733854241286,-500.0,0.00010958,2]
[344890866,1733854241295,-500.0,0.00010958,2]
[344890868,1733854241304,-500.0,0.00010958,2]
[344890870,1733854241314,-500.0,0.00010958,2]
[344890871,1733854241323,-500.0,0.00010958,2]
[344890872,1733854241333,-500.0,0.00010958,2]
[344890873,1733854241342,-626.92,0.00010958,2]
[344890875,1733854241351,-218.1,0.00010958,2]
[344890876,1733854241360,-500.0,0.00010958,2]
[344890878,1733854241370,-626.92,0.00010958,2]
[344890881,1733854241379,-500.0,0.00010958,2]
[344890882,1733854241388,-500.0,0.00010958,2]
[344890885,1733854241397,-626.92,0.00010958,2]
[344890886,1733854241406,-500.0,0.00010958,2]
[344890889,1733854241416,-500.0,0.00010958,2]
[344890890,1733854241426,-626.92,0.00010958,2]
[344890891,1733854241435,-612.95,0.00010958,2]
[344890892,1733854241447,-368.78,0.00010958,2]
[344890893,1733854241456,-626.92,0.00010958,2]
[344890894,1733854241465,-626.92,0.00010958,2]
[344890895,1733854241475,-626.92,0.00010958,2]
[344890896,1733854241484,-626.92,0.00010958,2]
[344890897,1733854241494,-626.92,0.00010958,2]
[344890898,1733854241503,-500.0,0.00010958,2]
[344890899,1733854241512,-626.92,0.00010958,2]
[344890900,1733854241522,-626.92,0.00010958,2]
[344890901,1733854241531,-626.92,0.00010958,2]
[344890902,1733854241540,-500.0,0.00010958,2]
[344890903,1733854241549,-626.92,0.00010958,2]
[344890904,1733854241559,-560.6,0.00010958,2]
[344890905,1733854241568,-626.92,0.00010958,2]
[344890906,1733854241578,-626.92,0.00010958,2]
[344890907,1733854241587,-626.92,0.00010958,2]
[344890908,1733854241597,-626.92,0.00010958,2]
[344890909,1733854241606,-626.92,0.00010958,2]
[344890910,1733854241616,-626.92,0.00010958,2]
[344890911,1733854241626,-500.0,0.00010958,2]
[344890912,1733854241636,-500.0,0.00010958,2]
[344890913,1733854241646,-626.92,0.00010958,2]
[344890914,1733854241655,-500.0,0.00010958,2]
[344890915,1733854241664,-626.92,0.00010958,2]
[344890916,1733854241674,-500.0,0.00010958,2]
[344890917,1733854241683,-500.0,0.00010958,2]
[344890918,1733854241693,-626.92,0.00010958,2]
[344890919,1733854241705,-626.92,0.00010958,2]
[344890920,1733854241715,-304.8,0.00010958,2]
[344890921,1733854241725,-626.94308287,0.00010958,2]
[344890922,1733854241734,-500.0,0.00010958,2]
[344890923,1733854241743,-500.0,0.00010958,2]
[344890924,1733854241752,-500.0,0.00010958,2]
[344890925,1733854241762,-500.0,0.00010958,2]
[344890926,1733854241772,-500.0,0.00010958,2]
[344890927,1733854241781,-500.0,0.00010958,2]
[344890928,1733854241790,-500.0,0.00010958,2]
[344890929,1733854241799,-500.0,0.00010958,2]
[344890930,1733854241809,-500.0,0.00010958,2]
[344890931,1733854241818,-500.0,0.00010958,2]
[344890932,1733854241828,-500.0,0.00010958,2]
[344890933,1733854241837,-284.45,0.00010958,2]
[344890934,1733854241847,-500.0,0.00010958,2]
[344890935,1733854241856,-184.43,0.00010958,2]
[344890936,1733854241866,-500.0,0.00010958,2]
[344890937,1733854241875,-500.0,0.00010958,2]
[344890938,1733854241885,-500.0,0.00010958,2]
[344890939,1733854241895,-324.03,0.00010958,2]
[344890940,1733854241905,-500.0,0.00010958,2]
[344890941,1733854241916,-286.34,0.00010958,2]
[344890942,1733854241927,-500.0,0.00010958,2]
[344890943,1733854241937,-199.75968,0.00010958,2]
[344890944,1733854241951,-500.0,0.00010958,2]
[344890945,1733854241962,-500.0,0.00010958,2]
[344890946,1733854241972,-500.0,0.00010958,2]
[344890947,1733854241982,-510.83,0.00010958,2]
[344890948,1733854241992,-500.0,0.00010958,2]
[344890949,1733854242002,-500.0,0.00010958,2]
[344890950,1733854242012,-500.0,0.00010958,2]
[344890951,1733854242021,-500.0,0.00010958,2]
[344890952,1733854242031,-500.0,0.00010958,2]
[344890953,1733854242041,-500.0,0.00010958,2]
[344890954,1733854242052,-291.78,0.00010958,2]
[344890955,1733854242062,-500.0,0.00010958,2]
[344890956,1733854242072,-500.0,0.00010958,2]
[344890957,1733854242083,-500.0,0.00010958,2]
[344890958,1733854242093,-500.0,0.00010958,2]
[344890959,1733854242103,-500.0,0.00010958,2]
[344890960,1733854242112,-516.88,0.00010958,2]
[344890961,1733854242122,-500.0,0.00010958,2]